Cogmind - Beta 14 @@@ ROGUE MODE // 2025.01.02 @ 15:10:27 Player: Willow Result: Destroyed by G-47 Trooper with Particle Gun Performance ------------- Evolutions (0) 0 Regions Visited (2) 400 Robots Destroyed (25) 125 Value Destroyed (517) 517 Prototype IDs (0) 0 Alien Tech Used (0) 0 Bonus (0) 0 TOTAL SCORE: 1042 Bonus ------- None Cogmind --------- Core Integrity 0/250 Matter 255/300 Energy 101/125 System Corruption 0% Temperature Cool (50) Movement Rolling (140) Ox4 Location -10/Mines Parts ------- > --- POWER (1) -------- Light Ion Engine > --- PROPULSION (2) --- Wheel Wheel > --- UTILITY (2) ------ Heat Sink Huge Storage Unit > --- WEAPON (2) ------- Particle Gun Beam Cannon > --- INVENTORY (25) --- Light Ion Engine Light Nuclear Core Aluminum Leg Aluminum Leg High-capacity Matter Pod (200) Sensor Array Signal Interpreter Targeting Computer Small Laser Small Laser Light Assault Rifle Grenade Launcher Datajack Mining Laser Peak State ------------ > --- POWER ------------ Light Ion Engine > --- PROPULSION ------- Wheel Wheel > --- UTILITY ---------- Huge Storage Unit Sensor Array > --- WEAPON ----------- Small Laser Particle Gun > --- INVENTORY -------- Light Ion Engine Light Nuclear Core Aluminum Leg Aluminum Leg Wheel Heat Sink High-capacity Matter Pod Signal Interpreter Targeting Computer Small Laser Beam Cannon Light Assault Rifle Grenade Launcher Datajack Mining Laser [Rating: 9] Favorites ----------- Power Ion Engine Engine Ion Engine Propulsion Wheel Wheel Wheel Utility Sensor Array Device Sensor Array Storage Huge Storage Unit Weapon Small Laser Energy Gun Small Laser Energy Cannon Beam Cannon Ballistic Gun Light Assault Rifle Build | -11 -10 -10 ------- Run | Yrd Mat Min Slots Evolved . | . . . Power . | . . . Propulsion . | . . . Utility . | . . . Weapon . | . . . Parts Attached 26 | 7 10 9 Power 5 | 1 2 2 Engine 5 | 1 2 2 Core . | . . . Reactor . | . . . Propulsion 7 | 3 2 2 Treads . | . . . Leg . | . . . Wheel 7 | 3 2 2 Hover . | . . . Flight . | . . . Utility 4 | 1 2 1 Device 2 | . 1 1 Storage 2 | 1 1 . Processor . | . . . Hackware . | . . . Protection . | . . . Artifact . | . . . Weapon 10 | 2 4 4 Energy Gun 5 | 1 1 3 Energy Cannon 1 | . . 1 Ballistic Gun 4 | 1 3 . Ballistic Cannon . | . . . Launcher . | . . . Special Weapon . | . . . Impact Weapon . | . . . Slashing Weapon . | . . . Piercing Weapon . | . . . Special Melee Weapon . | . . . Unidentified Prototypes . | . . . Parts Lost 8 | . 2 6 Power 2 | . . 2 Propulsion 3 | . 1 2 Utility . | . . . Weapon 3 | . 1 2 Highest Loss Streak 4 | . 1 4 To Critical Strikes . | . . . Average Slot Usage (%) 97 | . 98 90 Engine 14 | . 14 14 Wheel 26 | . 27 18 Device 13 | . 13 14 Storage 14 | . 14 14 Energy Gun 15 | . 14 24 Ballistic Gun 12 | . 14 2 Peak Build Rating 9 | 6 8 9 Average Rating 7 | 5 7 7 On Entrance 4 | . 6 8 Naked Turns . | . . . Heaviest Build 90 | 12 88 90 Greatest Support 26 | 26 20 20 Greatest Overweight (x) 8 | 1 8 8 Average Overweight (x) 1 | . 1 6 Largest Inventory Capacity 25 | 8 25 25 Average Capacity 16 | 7 16 25 Most Carried 17 | 8 16 17 Average Carried 9 | 3 9 15 Final Capacity 25 | 8 25 25 Final Carried 16 | 8 16 14 Class Distribution -------------------- 90% | Mutant 9% | Scavenger-Mutant Dominant Class ---------------- Mutant | -10/Materials Scavenger-Mutant | -10/Mines Resources | -11 -10 -10 ----------- Run | Yrd Mat Min Matter Collected 695 | 315 350 30 Remotely . | . . . Salvage Created 927 | 132 665 130 Parts 64 | 13 44 7 Haulers Intercepted . | . . . Recyclers Shooed . | . . . Parts Field Recycled . | . . . Retrieved Matter . | . . . Parts Self-Destructed . | . . . Prevented . | . . . Kills | -11 -10 -10 ------- Run | Yrd Mat Min Combat Hostiles Destroyed 14 | . 11 3 Guns 14 | . 11 3 Classes Destroyed 6 | 3 3 . Worker 3 | 2 1 . Tunneler 3 | 2 1 . Recycler 3 | 1 2 . Watcher 2 | . 2 . Swarmer 3 | . 3 . Grunt 11 | . 8 3 Best Kill Streak 5 | 5 3 2 Combat Bots Only 3 | . 3 2 Max Kills in Single Turn 1 | 1 1 1 Gunslinging . | . . . Exploded . | . . . Melee . | . . . Uniques/NPCs Destroyed . | . . . Combat | -11 -10 -10 -------- Run | Yrd Mat Min Hostile Shots Fired 93 | . 49 44 Missed 25 | . 13 12 Damage Taken 857 | . 411 446 Core 257 | . 119 138 Absorbed by Shields . | . . . Core Remaining (%) 100 | 100 . . Volleys Fired 99 | 24 56 19 Largest 2 | 2 2 2 Hottest 125 | 60 60 125 Shots Fired 192 | 46 111 35 Gun 190 | 46 111 33 Cannon 2 | . . 2 Launcher . | . . . Special . | . . . Kinetic 84 | 24 55 5 Thermal 108 | 22 56 30 Explosive . | . . . Electromagnetic . | . . . Robot Hit Streak 7 | 7 6 6 Robot Miss Streak 5 | 3 5 2 Penetration Max . | . . . Secondary Targets 1 | . 1 . Max Gunslinging Chain 1 | . 1 . Shots Hit Robots 109 | 30 56 23 Core Hits 48 | 7 32 9 Critical Kills 2 | . 2 . Critical Parts Destroyed . | . . . Critical Strikes 2 | . 2 . Destroy 2 | . 2 . Melee Attacks . | . . . Impact . | . . . Slashing . | . . . Piercing . | . . . Sneak Attacks . | . . . Combat Hostiles . | . . . Follow-up Attacks . | . . . Damage Inflicted 1113 | 275 572 266 Guns 1113 | 275 572 266 Cannons . | . . . Explosions . | . . . Melee . | . . . Ramming . | . . . Kinetic 398 | 125 239 34 Thermal 715 | 150 333 232 Explosive . | . . . Electromagnetic . | . . . Impact . | . . . Slashing . | . . . Piercing . | . . . Highest Corruption . | . . . Average Corruption . | . . . Corruption Purged . | . . . Corruption Blocked . | . . . Overload Shots . | . . . Overflow Damage . | . . . Projectiles . | . . . Explosions . | . . . Melee . | . . . Knockbacks . | . . . Impact . | . . . Kinetic . | . . . Secondary . | . . . Self-Inflicted Damage . | . . . Shots . | . . . Rammed . | . . . Targets Rammed . | . . . Kicked . | . . . Crushed . | . . . Highest Temperature 233 | 80 101 233 Average Temperature 51 | 36 36 98 Received Heat Transfer 471 | . 219 252 Effects 2 | . . 2 Interference 2 | . . 2 Siege Activations . | . . . Robots Corrupted . | . . . Combat Hostiles . | . . . Parts Fried . | . . . Impact Corruptions . | . . . Robots Melted . | . . . Combat Hostiles . | . . . Parts Melted 1 | . . 1 Heat Transferred 1647 | 350 750 547 Parts Sabotaged . | . . . Parts Stolen . | . . . Parts Stripped . | . . . Power Chain Reactions . | . . . Alert | -11 -10 -10 ------- Run | Yrd Mat Min Peak Influence 337 | 25 337 103 Initial 58 | . 16 58 Average 154 | 8 196 80 Maximum Alert Level 1 | . 1 . Low Security (%) 61 | 100 46 100 Level 1 38 | . 53 . Level 2 . | . . . Level 3 . | . . . Level 4 . | . . . Level 5 . | . . . High Security . | . . . Max Security . | . . . Squads Dispatched 2 | . 2 . Investigation 2 | . 2 . Extermination . | . . . Reinforcement . | . . . Assault . | . . . Garrison . | . . . Intercept . | . . . Searches Triggered . | . . . Construction Impeded . | . . . Haulers Reinforced . | . . . Active Scanning Responses . | . . . Cargo Convoy Interrupts . | . . . Stealth | -11 -10 -10 --------- Run | Yrd Mat Min Distress Signals 1 | . 1 . Communications Jammed . | . . . Distress Signals . | . . . Times Spotted 26 | . 20 6 Peak Tracking Total 3 | . 3 3 Tactical Retreats 3 | . 3 . Traps | -11 -10 -10 ------- Run | Yrd Mat Min Traps Triggered 2 | . 2 . Indirectly . | . . . Trap Hack Attempts . | . . . Triggered . | . . . Disarmed . | . . . Reprogrammed . | . . . Reused . | . . . Traps Extracted . | . . . Installed . | . . . Triggered . | . . . Machines | -11 -10 -10 ---------- Run | Yrd Mat Min Machines Disabled . | . . . Max in Single Turn . | . . . Machines Repaired . | . . . Machines Dismantled . | . . . Machines Sabotaged . | . . . Overloaded Fab Kills . | . . . Hacking | -11 -10 -10 --------- Run | Yrd Mat Min Machines Accessed 10 | . 10 . Terminals 8 | . 8 . Fabricators . | . . . Repair Stations . | . . . Recycling Units 2 | . 2 . Scanalyzers . | . . . Garrison Access . | . . . Total Hacks 26 | . 26 . Successful 9 | . 9 . Failed 17 | . 17 . Catastrophic 1 | . 1 . Database Lockouts . | . . . Manual 19 | . 19 . Terminals 24 | . 24 . Fabricators . | . . . Repair Stations . | . . . Recycling Units 2 | . 2 . Scanalyzers . | . . . Garrison Access . | . . . Terminal Hacks 2 | . 2 . Robot Analysis 1 | . 1 . Terminal Index 1 | . 1 . Fabricator Hacks . | . . . Repair Station Hacks . | . . . Recycling Unit Hacks . | . . . Scanalyzer . | . . . Garrison Access Hacks . | . . . Unauthorized Hacks 7 | . 7 . Terminals 5 | . 5 . Botnet 5 | . 5 . Fabricators . | . . . Repair Stations . | . . . Recycling Units 2 | . 2 . Tunnel 2 | . 2 . Scanalyzers . | . . . Garrison Access . | . . . Data Cores Recovered . | . . . Used . | . . . Hacking Detections 8 | . 8 . Full Trace Events 1 | . 1 . Feedback Events . | . . . Feedback Blocked . | . . . Robot Schematics Acquired . | . . . Robots Built . | . . . Authchips . | . . . Time . | . . . Total Robot Build Rating . | . . . Part Schematics Acquired . | . . . Parts Built . | . . . Authchips . | . . . Time . | . . . Total Part Build Rating . | . . . Parts Repaired . | . . . Time . | . . . Parts Recycled . | . . . Recycled Matter . | . . . Retrieved Matter . | . . . Retrieved Components . | . . . Parts Scanalyzed . | . . . Part Schematics Acquired . | . . . Parts Damaged . | . . . Bothacking | -11 -10 -10 ------------ Run | Yrd Mat Min Used RIF Installer . | . . . Robots Hacked . | . . . Non-combat . | . . . Combat . | . . . Robot Hacks Applied . | . . . Relay Couplers Released . | . . . Fabnet Peak Effective % . | . . . Robots Rewired . | . . . Allies Hacked . | . . . Hacks Repelled . | . . . Allies | -11 -10 -10 -------- Run | Yrd Mat Min Total Allies . | . . . Largest Group . | . . . Highest-Rated Group . | . . . Highest-Rated Ally . | . . . Total Orders . | . . . Ally Attacks . | . . . Total Damage . | . . . Kills . | . . . Allies Corrupted . | . . . Allies Melted . | . . . Intel | -11 -10 -10 ------- Run | Yrd Mat Min Robot Analysis Total 1 | . 1 . Derelict Logs Recovered . | . . . Drone Launches . | . . . Drone Recoveries . | . . . Exploration | -11 -10 -10 ------------- Run | Yrd Mat Min Turns Passed 1161 | 155 838 168 Spaces Moved 720 | 79 587 54 Core 17 | 17 . . Treads . | . . . Legs . | . . . Wheels 703 | 62 587 54 Hover . | . . . Flight . | . . . Fastest Speed 50 | 50 80 140 Average Speed 109 | 84 106 180 Slowest Speed 200 | 100 200 200 Overloaded Moves . | . . . Propulsion Burnouts . | . . . Robots Hopped . | . . . Cave-ins Triggered . | . . . Exploration Rate (%) 37 | 4 97 10 Regions Visited 2 Branch Regions 1 Pre-discovered Areas 2 | . 2 . Known Exits Taken . | . . . Unknown Exits Taken 2 | 1 1 . Scrap Searched . | . . . Spaces Dug . | . . . Terrain Destroyed . | . . . Melee . | . . . Projectile . | . . . AOE . | . . . Terrain Rammed . | . . . Walls Destroyed . | . . . Machines Disabled . | . . . Actions | -11 -10 -10 --------- Run | Yrd Mat Min Total 913 | 123 699 91 Wait 30 | . 24 6 Move 718 | 78 586 54 Hop . | . . . Pick Up 30 | 11 16 3 Fast Attach 11 | 6 5 . Attach 8 | . 2 6 Detach . | . . . Swap 7 | 1 3 3 Drop 10 | 3 7 . Fire 99 | 24 56 19 Melee . | . . . Ram . | . . . Kick . | . . . Crush . | . . . Escape Stasis . | . . . Rewire . | . . . Trap . | . . . Miscellaneous . | . . . Route ------- -11/Scrapyard -10/Materials (discovered 4 exits: [*Mat x3] / [*Min]) -10/Mines History --------- Turn | Location | Event 20 | -11/Scrapyard | Discovered new exit (range 15) 156 | -11/Scrapyard | Entered Materials 263 | -10/Materials | Discovered new exit (range 12) 303 | -10/Materials | Build established: Mutant 347 | -10/Materials | Discovered new exit (range 10) 488 | -10/Materials | Discovered new exit (range 16) 981 | -10/Materials | Discovered new exit (range 10) 994 | -10/Materials | Entered Mines 1026 | -10/Mines | Core integrity fell below 50% 1066 | -10/Mines | Lost 4 parts (1p1n2w) 1141 | -10/Mines | Core integrity fell below 20% 1162 | -10/Mines | Destroyed by G-47 Trooper with Particle Gun Last Messages --------------- LOCATION=UNKNOWN GOAL=ESCAPE Something is scanning the area. 01023_ Lgt. Assault Rifle destroyed. 01025_ Ion Engine destroyed. 01031_ G-47 Trooper destroyed. 01033_ Sml. Laser destroyed. 01035_ Wheel destroyed. 01042_ G-34 Mercenary destroyed. 01045_ Acquired 20 matter. 01051_ Acquired 10 matter. 01057_ Acquired Heat Sink. 01060_ Acquired Aluminum Leg. 01125_ Heat Sink melted. 01125_ G-34 Mercenary destroyed. 01132_ Ion Engine destroyed. 01138_ Overheating: System interference. 01138_ Particle Gun temporarily disabled. 01138_ Sml. Laser temporarily disabled. 01158_ Wheel destroyed. Map ----- +----------------------------------------------------+ | ?????????????????????????????????????? | | ?????????????????????????????????????? | | ????####?????????????????????????????? | | ???## ##????????????????????????????? | | ??## #????????????????????????????? | | ??# ! #????????????????????????????? | | ??# [=#????????????????????????????? | | ??# !#????????????????????????????? | | ??## = ##????????????????????????????? | | ???## ##?????????????????????????????? | | ????# #??????????????????????????????? | | ????# #??????????????????????????????? | | ???## ###????????????????????????????? | | ??## [ #????????????????????????????? | | ??# %%##?####???#??????????????????? | | ??# ### ##? #??????????????????? | | ??## ## #####??????????????? | | ???### #??????????????? | | ?????##### #### #??????????????? | | ?????????#### ##?? ???????????????? | | ????????????## ##? ???????????????? | | ?????????????# ## ???????????????? | | ?????????????## # #??????????????? | | ???????# ######gr ## #??????????????? | | ????????#t ##? ??????????????? | | ????????# @ g #?? [ ??????????????? | | ????????# ###### #??#% ??????????????? | | ???????????????# #??#*#??????????????? | | ???????????????# #??# #??????????????? | | ???????????????# #### ##$ #?????????? | | ???????????????# #???????????? | | ???????????????######### #???????????? | | ?????????????????????????????????????? | | ?????????????????????????????????????? | | ?????????????????????????????????????? | | ?????????????????????????????????????? | | ?????????????????????????????????????? | | ?????????????????????????????????????? | | ?????????????????????????????????????? | | ?????????????????????????????????????? | | ?????????????????????????????????????? | | ?????????????????????????????????????? | | ?????????????????????????????????????? | | ?????????????????????????????????????? | | ?????????????????????????????????????? | | ?????????????????????????????????????? | | ?????????????????????????????????????? | | ?????????????????????????????????????? | | ?????????????????????????????????????? | | ?????????????????????????????????????? | +----------------------------------------------------+ Best States ------------- Heat Dissipation 35 Energy Generation 10 Energy Capacity 250 Matter Stores 300 Matter Capacity 300 Sight Range 16 Robot Scan Range 14 Terrain Scan Density 10 Evasion (%) 44 Item Schematics ----------------- None Robot Schematics ------------------ None Fabricated ------------ Nothing Alien Tech Used ----------------- None Achievements -------------- None Challenges ------------ None Game ------ Seed ChainForceInitializer Manual? 0 Play Time 00:12:37 Cumulative 55.0 hours Start 2025.01.02 @ 14:57:11 End 2025.01.02 @ 15:10:27 Sessions 1 Manual Loads 0 Difficulty Rogue Special Mode None Game No. 42 Rogue 27 Adventurer 15 Explorer 0 Win Type - Total 0 Types 0/0/0/0/0/0/0/0/0 Lore% 33 Gallery% 35 Achievement% 33 Wizard Run 0 Options --------- Layout 1 ASCII 0 Keyboard 0 Movement Mouse Keybinds 0 Fullscreen 1 Font 24/Smallcaps Map View 50x35 Zoom Use 0% Tactical HUD 1 Map Filters NONE Filters NONE Steam 1 RUN: ef3abdca-4648-4b47-8a2b-21afdcf07bdb